bitfinex/quotes_SOLUSD_20241223
["timestamp","ask_amount","ask_price","bid_price","bid_amount"]
[1734917794805,38.7167848,181.51,181.43,0.82642741]
[1734917795203,38.7167848,181.53,181.44,38.7167848]
[1734917795534,38.7167848,181.55,181.46,38.7167848]
[1734917795719,38.7167848,181.55,181.47,0.82622688]
[1734917796020,38.7167848,181.53,181.44,38.7167848]
[1734917796209,38.7167848,181.53,181.45,0.82634165]
[1734917797337,38.7167848,181.53,181.46,38.7167848]
[1734917797509,38.7167848,181.53,181.47,0.82624202]
[1734917797906,39.429257,181.63,181.52,38.7167848]
[1734917798121,39.429257,181.63,181.54,38.7167848]
[1734917798307,39.429257,181.63,181.55,0.8258735]
[1734917799219,38.7167848,181.61,181.52,38.7167848]
[1734917799535,38.7167848,181.61,181.53,0.8260084]
[1734917800055,39.429257,181.63,181.54,38.7167848]
[1734917800202,39.429257,181.63,181.5,38.7167848]
[1734917800203,38.7167848,181.59,181.5,38.7167848]
[1734917800538,38.7167848,181.55,181.46,38.7167848]
[1734917800836,38.7167848,181.55,181.47,0.82623267]
[1734917802257,38.7167848,181.57,181.48,38.7167848]
[1734917802406,0.7124722,181.63,181.56,38.7167848]
[1734917802726,0.7124722,181.63,181.61,38.7167848]
[1734917802907,0.7124722,181.63,181.62,0.82563951]
[1734917803308,38.7167848,181.71,181.62,0.82563951]
[1734917803627,38.7167848,181.77,181.67,38.7167848]
[1734917803825,38.7167848,181.77,181.69,38.7167848]
[1734917804026,38.7167848,181.79,181.7,0.82527083]
[1734917804327,41.6515367,181.81,181.71,38.7167848]
[1734917804530,41.4011703,181.81,181.73,38.7167848]
[1734917804836,2.6843855,181.81,181.75,38.7167848]
[1734917805018,41.4011703,181.81,181.73,38.7167848]
[1734917805215,41.4011703,181.81,181.66,0.82495346]
[1734917805216,41.4011703,181.81,181.71,38.7167848]
[1734917805420,38.7167848,181.79,181.72,0.82516668]
[1734917806220,38.7167848,181.77,181.67,38.7167848]
[1734917806437,38.7167848,181.75,181.67,38.7167848]
[1734917806919,38.7167848,181.73,181.65,38.7167848]
[1734917807234,38.7167848,181.73,181.66,3.79543632]
[1734917808136,1.3753,181.77,181.63,38.7167848]
[1734917808137,38.7167848,181.71,181.63,38.7167848]
[1734917808332,38.7167848,181.73,181.65,38.7167848]
[1734917808520,38.7167848,181.67,181.59,38.7167848]
[1734917808834,38.7167848,181.69,181.6,0.82572979]
[1734917809019,38.7167848,181.69,181.61,38.7167848]
[1734917809220,38.7167848,181.69,181.62,0.82553376]
[1734917810026,38.7167848,181.69,181.63,3.80032147]
[1734917810225,38.7167848,181.67,181.63,3.80032147]
[1734917810626,38.7167848,181.67,181.6,0.82568422]
[1734917811041,38.7167848,181.67,181.59,38.7167848]
[1734917811216,38.7167848,181.67,181.58,0.82572124]
[1734917811416,38.7167848,181.65,181.58,0.82572124]
[1734917811726,38.7167848,181.65,181.58,0.82584997]
[1734917811924,38.7167848,181.65,181.59,3.80651469]
[1734917812937,38.7167848,181.65,181.57,38.7167848]
[1734917813338,20.0,181.74,181.59,38.7167848]
[1734917813339,38.7167848,181.67,181.59,38.7167848]
[1734917813654,38.7167848,181.69,181.61,38.7167848]
[1734917814117,38.7167848,181.67,181.59,38.7167848]
[1734917814435,38.7167848,181.65,181.57,38.7167848]
[1734917814634,38.7167848,181.67,181.59,38.7167848]
[1734917814820,38.7167848,181.67,181.6,0.8257082]
[1734917815025,38.7167848,181.69,181.61,38.7167848]
[1734917815431,38.7167848,181.71,181.63,38.7167848]
[1734917817127,38.7167848,181.69,181.61,38.7167848]
[1734917817644,38.7167848,181.71,181.63,38.7167848]
[1734917817815,38.7167848,181.71,181.64,0.82554445]
[1734917818009,38.7167848,181.71,181.63,38.7167848]
[1734917818826,38.7167848,181.71,181.64,0.82555279]
[1734917819323,38.7167848,181.75,181.67,38.7167848]
[1734917819525,38.7167848,181.75,181.68,0.82531497]
[1734917819526,39.1788906,181.75,181.68,0.82531497]
[1734917819922,38.7167848,181.73,181.65,38.7167848]
[1734917820315,38.7167848,181.73,181.66,0.82553556]
[1734917820518,38.7167848,181.73,181.65,39.54226663]
[1734917820952,0.4621058,181.75,181.72,38.7167848]
[1734917821133,0.4621058,181.75,181.73,0.82509252]
[1734917821326,0.4621058,181.75,181.7,38.7167848]
[1734917821528,0.4621058,181.75,181.71,0.82521832]
[1734917821733,0.4621058,181.75,181.7,38.7167848]
[1734917821943,0.4621058,181.75,181.72,38.7167848]
[1734917822119,0.4621058,181.75,181.74,38.7167848]
[1734917822625,0.4621058,181.75,181.74,62.4936688]
[1734917823420,0.4621058,181.75,181.74,62.6191588]
[1734917823747,0.4621058,181.75,181.74,38.7167848]
[1734917824161,2.2222797,181.81,181.75,0.12549]
[1734917824335,2.2222797,181.81,181.79,38.7167848]
[1734917824536,2.2222797,181.81,181.8,0.82475843]
[1734917824734,2.2222797,181.81,181.77,38.7167848]
[1734917825039,2.2222797,181.81,181.79,38.7167848]
[1734917825221,2.2222797,181.81,181.8,0.82475647]
[1734917826033,2.2222797,181.81,181.8,24.72713047]
[1734917826241,2.2222797,181.81,181.8,0.82475647]
[1734917827053,2.2222797,181.81,181.77,39.54154523]
[1734917829026,2.2222797,181.81,181.75,38.7167848]
[1734917829229,38.7167848,181.8,181.71,38.7167848]
[1734917829444,38.7167848,181.78,181.69,38.7167848]
[1734917829832,38.7167848,181.78,181.65,6.2682]
[1734917829833,38.7167848,181.8,181.71,38.7167848]
[1734917830037,2.2222797,181.81,181.75,38.7167848]
[1734917830232,2.2222797,181.81,181.76,0.82491945]
[1734917830927,2.2222797,181.81,181.77,42.53923455]
[1734917831250,2.2222797,181.81,181.79,42.53923455]
[1734917831437,2.2222797,181.81,181.79,43.36394886]
[1734917832555,2.2222797,181.81,181.8,0.82478969]
[1734917832745,2.2222797,181.81,181.8,67.26639824]
[1734917832949,42.53923455,181.93,181.8,24.60167369]
[1734917833151,42.53923455,181.91,181.83,42.53923455]
[1734917833328,42.53923455,181.91,181.84,0.82461811]
[1734917834324,6.9489078,181.94,181.81,42.53923455]
[1734917834325,42.53923455,181.89,181.81,42.53923455]
[1734917834936,42.53923455,181.89,181.82,0.82477611]
[1734917835135,42.53923455,181.91,181.82,0.82477611]
[1734917835953,42.53923455,181.91,181.83,42.53923455]
[1734917836136,42.53923455,181.89,181.79,42.53923455]
[1734917836453,42.53923455,181.87,181.79,42.53923455]
[1734917836636,42.53923455,181.89,181.81,42.53923455]
[1734917836852,42.53923455,181.91,181.83,42.53923455]
[1734917837160,42.53923455,181.93,181.84,0.82460933]
[1734917837465,42.53923455,181.91,181.84,0.82460933]
[1734917838044,43.91353455,181.91,181.84,0.82460933]
[1734917838248,43.91353455,181.91,181.81,42.53923455]
[1734917838439,43.91353455,181.91,181.81,43.36397074]
[1734917838637,42.53923455,181.93,181.84,0.12549]
[1734917838937,0.7385078,181.94,181.85,42.53923455]
[1734917839238,0.7385078,181.94,181.86,0.82444956]
[1734917839537,42.53923455,181.93,181.85,42.53923455]
[1734917839855,42.53923455,181.93,181.85,43.36367717]
[1734917840433,0.7385078,181.94,181.85,43.36367717]
[1734917840629,0.7385078,181.94,181.87,42.53923455]
[1734917840961,0.7385078,181.94,181.88,0.82444212]
[1734917841442,43.27774235,181.94,181.88,0.82444212]
[1734917842843,42.53923455,181.92,181.85,42.53923455]
[1734917843043,43.27774235,181.94,181.86,0.82462761]
[1734917844363,44.65184235,181.94,181.85,42.53923455]
[1734917844561,42.53923455,181.9,181.81,43.36375524]
[1734917844778,42.53923455,181.88,181.79,42.53923455]
[1734917844981,42.53923455,181.92,181.83,42.53923455]
[1734917845148,43.27774235,181.94,181.85,42.53923455]
[1734917845478,0.7385078,181.94,181.88,42.53923455]
[1734917845637,0.7385078,181.94,181.93,0.12549]
[1734917845832,42.53923455,182.06,181.97,42.53923455]
[1734917846063,42.53923455,182.06,181.98,0.82398471]
[1734917846259,42.53923455,182.04,181.97,42.53923455]
[1734917846466,42.53923455,182.04,181.95,42.53923455]
[1734917846633,42.53923455,182.04,181.96,0.8239909]
[1734917847049,42.53923455,182.02,181.93,42.53923455]
[1734917847246,42.53923455,182.0,181.93,42.53923455]
[1734917848439,42.53923455,182.0,181.89,6.0302]
[1734917848440,42.53923455,181.96,181.89,42.53923455]
[1734917848941,42.53923455,181.94,181.87,42.53923455]
[1734917849169,42.53923455,181.94,181.85,42.53923455]
[1734917849368,42.53923455,181.94,181.87,42.53923455]
[1734917849866,42.53923455,181.94,181.84,0.824576]
[1734917849867,42.53923455,181.94,181.85,42.53923455]
[1734917850090,42.53923455,181.9,181.81,42.53923455]
[1734917850266,42.53923455,181.88,181.79,42.53923455]
[1734917850969,42.53923455,181.92,181.83,42.53923455]
[1734917851443,42.53923455,181.92,181.75,0.82470856]
[1734917851444,42.53923455,181.92,181.8,42.53923455]
[1734917851647,42.53923455,181.96,181.87,42.53923455]
[1734917851856,42.53923455,181.96,181.89,42.53923455]
[1734917852047,42.53923455,181.94,181.87,42.53923455]
[1734917852245,42.53923455,181.92,181.85,42.53923455]
[1734917852438,42.53923455,181.92,181.83,42.53923455]
[1734917852881,43.91323455,181.94,181.85,42.53923455]
[1734917853546,42.53923455,181.92,181.83,42.53923455]
[1734917854073,42.53923455,181.9,181.83,42.53923455]
[1734917854287,42.53923455,181.92,181.83,42.53923455]
[1734917854860,42.53923455,181.9,181.83,42.53923455]
[1734917855057,42.53923455,181.88,181.79,42.53923455]
[1734917855259,42.53923455,181.86,181.79,42.53923455]
[1734917855476,42.53923455,181.84,181.75,43.36399409]
[1734917855786,42.53923455,181.84,181.75,42.53923455]
[1734917855964,42.53923455,181.82,181.73,42.53923455]
[1734917856345,42.53923455,181.84,181.75,42.53923455]
[1734917856545,42.53923455,181.9,181.81,42.53923455]
[1734917856825,42.53923455,181.9,181.83,42.53923455]
[1734917857195,49.04393455,181.92,181.83,42.53923455]
[1734917857489,42.53923455,181.92,181.83,42.53923455]
[1734917858190,3.5104,181.93,181.85,42.53923455]
[1734917858344,42.53923455,181.94,181.87,42.53923455]
[1734917859080,42.53923455,181.94,181.86,0.82454939]
[1734917859247,42.53923455,181.94,181.86,0.82454776]
[1734917859958,42.53923455,181.96,181.87,42.53923455]
[1734917860169,42.53923455,181.96,181.88,0.82438718]
[1734917860576,42.53923455,181.96,181.87,42.53923455]
[1734917860995,42.53923455,181.94,181.87,42.53923455]
[1734917862005,42.53923455,181.94,181.85,42.53923455]
[1734917863412,42.53923455,181.92,181.85,42.53923455]
[1734917863592,42.53923455,181.92,181.83,42.53923455]
[1734917863907,42.53923455,181.88,181.81,42.53923455]
[1734917864080,42.53923455,181.88,181.8,0.82472603]
[1734917864282,42.53923455,181.84,181.77,42.53923455]
[1734917864506,42.53923455,181.84,181.75,42.53923455]
[1734917864807,42.53923455,181.82,181.75,42.53923455]
[1734917865011,42.53923455,181.82,181.76,9.97089605]
[1734917865366,42.53923455,181.8,181.76,9.97089605]
[1734917865571,42.53923455,181.8,181.7,0.82503494]
[1734917865572,42.53923455,181.78,181.77,3.83495235]
[1734917866480,42.53923455,181.78,181.67,9.97089605]
[1734917866707,42.53923455,181.74,181.67,9.97089605]
[1734917866898,1.3752,181.79,181.67,9.97089605]
[1734917866899,42.53923455,181.72,181.67,9.97089605]
[1734917867109,42.53923455,181.74,181.68,9.97089605]
[1734917867484,42.53923455,181.74,181.69,6.1359437]
[1734917867702,42.53923455,181.74,181.69,9.97089605]
[1734917867890,42.53923455,181.72,181.69,9.97089605]
[1734917868092,42.53923455,181.72,181.7,3.83495235]
[1734917868725,1.3752,181.79,181.71,42.53923455]
[1734917868726,20.0,181.77,181.71,42.53923455]
[1734917868887,20.0,181.75,181.71,42.53923455]
[1734917870115,20.0,181.75,181.62,42.53923455]
[1734917870116,3.4587,181.74,181.69,42.53923455]
[1734917870278,3.4587,181.74,181.67,42.53923455]
[1734917870480,3.4587,181.74,181.69,42.53923455]
[1734917871100,3.4587,181.74,181.67,42.53923455]
[1734917871416,25.277974,181.73,181.65,42.53923455]
[1734917871594,3.4587,181.74,181.71,42.53923455]
[1734917871918,3.4587,181.74,181.73,42.53923455]
[1734917872081,9.6507,181.8,181.73,42.53923455]
[1734917872280,9.6507,181.8,181.77,42.53923455]
[1734917873115,3.3861,181.8,181.79,42.53923455]
[1734917873410,9.4821,181.86,181.79,42.53923455]
[1734917873619,3.3861,181.86,181.82,42.53923455]
[1734917873982,3.3861,181.86,181.8,42.53923455]
[1734917874177,45.92533455,181.86,181.78,42.53923455]
[1734917874715,3.3861,181.86,181.8,42.53923455]
[1734917875824,3.3861,181.86,181.82,42.53923455]
[1734917876020,3.3861,181.86,181.84,42.53923455]
[1734917876224,42.53923455,181.92,181.84,42.53923455]
[1734917877242,42.53923455,181.88,181.8,42.53923455]
[1734917878221,42.53923455,181.86,181.78,42.53923455]
[1734917880131,42.53923455,181.84,181.76,42.53923455]
[1734917880437,43.91363455,181.89,181.73,42.53923455]
[1734917880438,1.3744,181.89,181.73,42.53923455]
[1734917880749,42.53923455,181.92,181.84,42.53923455]
[1734917880917,3.452,181.93,181.86,42.53923455]
[1734917881237,42.53923455,181.92,181.84,42.53923455]
[1734917881940,42.53923455,181.9,181.82,42.53923455]
[1734917882136,3.452,181.93,181.82,42.53923455]
[1734917882436,42.53923455,181.91,181.82,42.53923455]
[1734917882636,42.53923455,181.91,181.84,42.53923455]
[1734917883134,3.452,181.93,181.84,42.53923455]
[1734917883135,45.99123455,181.93,181.84,42.53923455]
[1734917883944,45.99123455,181.93,181.86,42.53923455]
[1734917885142,42.53923455,181.91,181.84,42.53923455]
[1734917885648,42.53923455,181.91,181.82,42.53923455]
[1734917886537,42.53923455,181.87,181.78,42.53923455]
[1734917886738,42.53923455,181.87,181.72,0.82485713]
[1734917886739,42.53923455,181.83,181.74,42.53923455]
[1734917887243,42.53923455,181.81,181.72,42.53923455]
[1734917887540,42.53923455,181.79,181.72,42.53923455]
[1734917889246,1.3749,181.83,181.72,42.53923455]
[1734917889247,42.53923455,181.81,181.72,42.53923455]
[1734917889547,10.0452,181.93,181.79,42.53923455]
[1734917889759,10.0452,181.93,181.85,42.53923455]
[1734917889760,45.99123455,181.93,181.85,42.53923455]
[1734917890244,42.53923455,181.89,181.81,42.53923455]
[1734917890832,0.12549,181.92,181.81,42.53923455]
[1734917891041,42.53923455,181.91,181.81,42.53923455]
[1734917891430,42.53923455,181.91,181.83,42.53923455]
[1734917892152,42.53923455,181.91,181.81,42.53923455]
[1734917892451,42.53923455,181.89,181.81,42.53923455]
[1734917892748,42.53923455,181.85,181.77,42.53923455]
[1734917893749,42.53923455,181.89,181.79,42.53923455]
[1734917894044,42.53923455,181.85,181.77,42.53923455]
[1734917894417,42.53923455,181.87,181.79,42.53923455]
[1734917895421,42.53923455,181.85,181.77,42.53923455]
[1734917897227,0.12549,181.9,181.71,43.36445553]
[1734917897228,42.53923455,181.87,181.79,42.53923455]
[1734917897749,20.0,181.88,181.79,42.53923455]
[1734917898119,0.12549,181.86,181.77,42.53923455]
[1734917898347,42.53923455,181.83,181.75,42.53923455]
[1734917898825,42.53923455,181.85,181.75,42.53923455]
[1734917899025,42.53923455,181.85,181.77,42.53923455]
[1734917899241,42.53923455,181.87,181.79,42.53923455]
[1734917899820,42.53923455,181.85,181.77,42.53923455]
[1734917900025,43.91383455,181.87,181.79,42.53923455]
[1734917900239,6.5406,181.98,181.85,42.53923455]
[1734917900439,3.2382,181.99,181.91,42.53923455]
[1734917900743,42.53923455,182.0,181.91,42.53923455]
[1734917900915,42.53923455,182.0,181.84,7.19922196]
[1734917900916,42.53923455,182.0,181.93,42.53923455]
[1734917901921,42.11140135,182.0,181.93,42.53923455]
[1734917902354,38.49139573,182.01,181.93,38.49139573]
[1734917903638,6.5406,182.03,181.91,38.49139573]
[1734917903639,0.12549,181.98,181.91,38.49139573]
[1734917903954,0.12549,181.98,181.8,41.04459573]
[1734917903955,38.49139573,181.95,181.87,38.49139573]
[1734917904533,38.49139573,181.97,181.89,38.49139573]
[1734917906260,39.86509573,181.99,181.89,38.49139573]
[1734917906463,38.49139573,182.01,181.91,38.49139573]
[1734917907169,38.49139573,181.97,181.89,38.49139573]
[1734917908252,39.86519573,181.97,181.87,38.49139573]
[1734917909071,39.86519573,181.97,181.79,8.69834443]
[1734917909072,38.49139573,181.93,181.85,38.49139573]
[1734917909242,38.49139573,181.93,181.83,38.49139573]
[1734917909748,38.49139573,181.93,181.85,38.49139573]
[1734917910963,38.49139573,181.91,181.83,38.49139573]
[1734917911167,38.49139573,181.89,181.81,38.49139573]
[1734917911462,38.49139573,181.85,181.77,38.49139573]
[1734917912031,38.49139573,181.83,181.75,38.49139573]
[1734917912236,38.49139573,181.81,181.73,38.49139573]
[1734917912636,38.49139573,181.79,181.64,0.82524367]
[1734917912965,38.49139573,181.75,181.68,38.49139573]
[1734917913482,38.49139573,181.77,181.68,38.49139573]
[1734917913689,6.2209,181.79,181.73,38.49139573]
[1734917913885,3.3074,181.8,181.73,38.49139573]
[1734917914171,38.49139573,181.89,181.78,38.49139573]
[1734917914365,38.49139573,181.89,181.68,7.49852223]
[1734917914366,38.49139573,181.89,181.81,38.49139573]
[1734917915055,3.3737,181.91,181.85,38.49139573]
[1734917915573,3.3737,181.91,181.81,38.49139573]
[1734917915574,0.12549,181.9,181.81,38.49139573]
[1734917915755,38.49139573,181.89,181.81,38.49139573]
[1734917915951,0.12549,181.88,181.81,38.49139573]
[1734917916270,4.748,181.91,181.79,38.49139573]
[1734917916271,38.49139573,181.87,181.79,38.49139573]
[1734917916681,0.12549,181.86,181.79,38.49139573]
[1734917917265,0.12549,181.84,181.77,38.49139573]
[1734917918583,0.12549,181.85,181.77,38.49139573]
[1734917919071,1.3746,181.86,181.79,38.49139573]
[1734917919280,38.49139573,181.89,181.81,38.49139573]
[1734917919980,38.49139573,181.86,181.79,38.49139573]
[1734917920150,38.49139573,181.84,181.77,38.49139573]
[1734917920351,0.12549,181.83,181.77,38.49139573]
[1734917920547,0.12549,181.83,181.69,7.28337152]
[1734917920548,0.12549,181.81,181.73,38.49139573]
[1734917921476,0.12549,181.81,181.74,3.83805427]
[1734917921792,0.12549,181.81,181.73,38.49139573]
[1734917922080,0.12549,181.75,181.69,38.49139573]
[1734917922255,38.49139573,181.74,181.67,38.49139573]
[1734917922578,0.12549,181.73,181.7,3.83750878]
[1734917922978,38.49139573,181.76,181.69,38.49139573]
[1734917923162,39.86679573,181.76,181.69,38.49139573]
[1734917923363,0.12549,181.75,181.69,38.49139573]
[1734917924099,39.86679573,181.76,181.69,38.49139573]
[1734917924249,3.4443,181.79,181.71,38.49139573]
[1734917925054,3.4443,181.79,181.73,38.49139573]
[1734917925261,43.07809573,181.84,181.77,38.49139573]
[1734917925458,3.2119,181.84,181.83,38.49139573]
[1734917925782,3.2119,181.84,181.81,38.49139573]
[1734917926984,3.2119,181.84,181.83,30.0]
[1734917927561,3.2119,181.84,181.83,68.49139573]
[1734917928273,3.2119,181.84,181.83,30.0]
[1734917928579,1.3745,181.88,181.83,30.0]
[1734917928959,45.98169573,181.92,181.83,68.49139573]
[1734917929158,3.4537,181.93,181.91,38.49139573]
[1734917929394,6.2727,181.97,181.91,68.49139573]
[1734917929567,6.2727,181.97,181.93,38.49139573]
[1734917929765,7.6465,181.97,181.91,30.0]
[1734917929967,0.12549,181.96,181.91,30.0]
[1734917930285,0.12549,181.96,181.92,30.0]
[1734917930485,0.12549,181.96,181.9,38.49139573]
[1734917930787,0.12549,181.94,181.9,38.49139573]
[1734917931170,0.12549,181.92,181.88,38.49139573]
[1734917931365,0.12549,181.92,181.86,38.49139573]
[1734917931685,43.902374,181.92,181.84,38.49139573]
[1734917931981,0.12549,181.89,181.84,38.49139573]
[1734917932185,0.12549,181.89,181.82,38.49139573]
[1734917932186,0.12549,181.87,181.82,38.49139573]
[1734917932391,23.902374,181.87,181.8,38.49139573]
[1734917932765,25.276974,181.87,181.8,38.49139573]
[1734917935809,0.12549,181.85,181.78,38.49139573]
[1734917935976,23.902374,181.85,181.78,38.49139573]
[1734917936484,0.12549,181.81,181.76,38.49139573]
[1734917936685,20.0,181.82,181.76,38.49139573]
[1734917937100,0.12549,181.81,181.76,38.49139573]
[1734917937674,1.50049,181.81,181.76,38.49139573]
[1734917939698,0.12549,181.79,181.74,38.49139573]
[1734917939998,1.50049,181.81,181.7,38.49139573]
[1734917939999,23.902374,181.76,181.7,38.49139573]
[1734917940296,23.902374,181.76,181.68,42.58193585]
[1734917940297,6.6021,181.74,181.68,42.58193585]
[1734917940482,20.0,181.76,181.71,42.58193585]
[1734917940685,23.776884,181.77,181.71,42.58193585]
[1734917940999,0.12549,181.76,181.7,42.58193585]
[1734917941778,0.12549,181.74,181.7,42.58193585]
[1734917941973,0.12549,181.74,181.69,42.58193585]
[1734917942181,23.902374,181.74,181.68,42.58193585]
[1734917942394,23.902374,181.72,181.66,42.58193585]
[1734917942573,66.48430985,181.72,181.65,42.58193585]
[1734917942780,0.12549,181.7,181.64,42.58193585]
[1734917942988,23.902374,181.7,181.63,42.58193585]
[1734917943206,0.12549,181.65,181.6,42.58193585]
[1734917943393,23.902374,181.65,181.58,42.58193585]
[1734917943592,23.902374,181.65,181.53,50.87844338]
[1734917943593,0.12549,181.63,181.57,42.58193585]
[1734917943800,0.12549,181.59,181.53,42.58193585]
[1734917944194,38.67954829,181.56,181.5,0.7129082]
[1734917944392,38.67954829,181.58,181.51,38.67954829]
[1734917944611,23.776884,181.62,181.5,0.7129082]
[1734917945018,20.0,181.63,181.5,0.7129082]
[1734917945188,23.776884,181.62,181.5,0.7129082]
[1734917945719,38.67954829,181.61,181.53,38.67954829]
[1734917946289,38.80503829,181.6,181.52,38.67954829]
[1734917946702,38.67954829,181.61,181.53,38.67954829]
[1734917947488,38.67954829,181.62,181.54,38.67954829]
[1734917947692,42.00564829,181.66,181.58,38.67954829]
[1734917948120,38.67954829,181.64,181.56,38.67954829]
[1734917948619,0.12549,181.63,181.56,38.67954829]
[1734917948819,0.12549,181.63,181.54,38.67954829]
[1734917948820,38.67954829,181.62,181.54,38.67954829]
[1734917949190,38.67954829,181.6,181.52,38.67954829]
[1734917949392,0.12549,181.57,181.5,39.39245649]
[1734917949592,38.67954829,181.54,181.5,0.7129082]
[1734917951316,38.67954829,181.52,181.5,0.7129082]
[1734917951491,0.12549,181.51,181.5,0.7129082]
[1734917951687,23.902374,181.51,181.5,8.2e-06]
[1734917952419,38.67954829,181.52,181.5,8.2e-06]
[1734917953120,38.67954829,181.54,181.5,8.2e-06]
[1734917953494,38.67954829,181.52,181.5,8.2e-06]
[1734917953800,38.67954829,181.56,181.5,8.2e-06]
[1734917953992,6.4177,181.58,181.5,8.2e-06]
[1734917953993,38.67954829,181.58,181.5,38.67955649]
[1734917954194,3.4012,181.6,181.52,38.67954829]
[1734917954195,42.08074829,181.6,181.52,38.67954829]
[1734917954499,38.67954829,181.64,181.56,38.67954829]
[1734917954823,38.67954829,181.66,181.58,38.67954829]
[1734917955509,38.67954829,181.64,181.56,38.67954829]
[1734917955813,38.67954829,181.66,181.56,38.67954829]
[1734917957224,38.67954829,181.64,181.56,38.67954829]
[1734917957812,3.2547,181.67,181.58,38.67954829]
[1734917958009,38.67954829,181.63,181.56,38.67954829]
[1734917958310,38.67954829,181.57,181.5,8.2e-06]
[1734917958502,38.67954829,181.53,181.5,8.2e-06]
[1734917958820,2.18601239,181.63,181.5,8.2e-06]
[1734917959023,38.67954829,181.55,181.5,8.2e-06]
[1734917959198,38.67954829,181.57,181.5,8.2e-06]
[1734917959613,38.67954829,181.59,181.51,38.67954829]
[1734917959922,38.67954829,181.65,181.57,38.67954829]
[1734917960621,3.1771,181.73,181.64,38.67954829]
[1734917960824,275.83499611,181.94,181.68,38.67954829]
[1734917960825,38.67954829,181.76,181.68,38.67954829]
[1734917961201,38.67954829,181.74,181.66,38.67954829]
[1734917961429,0.12549,181.73,181.66,38.67954829]
[1734917961727,38.67954829,181.74,181.66,38.67954829]
[1734917962327,38.67954829,181.76,181.66,38.67954829]
[1734917962628,0.12549,181.75,181.66,38.67954829]
[1734917963333,38.67954829,181.76,181.66,38.67954829]
[1734917963830,38.67954829,181.76,181.68,38.67954829]
[1734917964127,0.12549,181.75,181.68,38.67954829]
[1734917964324,1.50099,181.75,181.66,38.67954829]
[1734917965529,1.50099,181.75,181.68,38.67954829]
[1734917965699,1.3755,181.75,181.68,38.67954829]
[1734917967536,38.67954829,181.72,181.64,38.67954829]
[1734917967831,23.902374,181.69,181.62,38.67954829]
[1734917968010,23.902374,181.69,181.6,38.67954829]
[1734917968411,20.12549,181.65,181.58,38.67954829]
[1734917968636,0.12549,181.65,181.56,38.67954829]
[1734917968939,38.67954829,181.66,181.58,38.67954829]
[1734917969470,0.12549,181.65,181.58,38.67954829]
[1734917969619,38.67954829,181.66,181.58,38.67954829]
[1734917970638,0.12549,181.66,181.58,38.67954829]
[1734917970837,3.4638,181.67,181.6,38.67954829]
[1734917971322,1.3758,181.71,181.64,38.67954829]
[1734917971641,9.1943,181.73,181.66,38.67954829]
[1734917972139,3.1807,181.73,181.66,38.67954829]
[1734917972643,0.12549,181.72,181.66,38.67954829]
[1734917973138,0.12549,181.72,181.64,38.67954829]
[1734917974141,3.1807,181.73,181.66,38.67954829]
[1734917974550,3.1807,181.73,181.68,38.67954829]
[1734917977547,3.1807,181.73,181.66,38.67954829]
[1734917979523,41.86024829,181.73,181.66,38.67954829]
[1734917980144,41.86024829,181.73,181.6,3.02777073]
[1734917980339,45.76934931,181.73,181.66,42.58864931]
[1734917980947,3.1807,181.73,181.67,42.58864931]
[1734917983146,3.1807,181.73,181.62,42.58864931]
[1734917983351,0.12549,181.69,181.62,42.58864931]
[1734917983521,1.3758,181.71,181.65,42.58864931]
[1734917983843,3.1807,181.73,181.67,42.58864931]
[1734917984053,3.1807,181.73,181.68,42.58864931]
[1734917984661,3.1807,181.73,181.67,42.58864931]
[1734917984822,3.1807,181.73,181.66,42.58864931]
[1734917985132,42.58864931,181.72,181.65,42.58864931]
[1734917985316,42.58864931,181.72,181.63,42.58864931]
[1734917985317,42.58864931,181.7,181.63,42.58864931]
[1734917985522,42.58864931,181.7,181.62,42.58864931]
[1734917986650,42.58864931,181.7,181.55,0.82575749]
[1734917986651,42.58864931,181.7,181.63,42.58864931]
[1734917988150,0.12549,181.72,181.64,42.58864931]
[1734917988151,42.58864931,181.72,181.64,42.58864931]
[1734917988355,3.1807,181.73,181.67,42.58864931]
[1734917988948,3.1807,181.73,181.66,42.58864931]
[1734917989262,1.3754,181.77,181.69,42.58864931]
[1734917989426,42.58864931,181.76,181.69,42.58864931]
[1734917990656,3.3972,181.8,181.73,42.58864931]
[1734917990954,3.3972,181.8,181.75,42.58864931]
[1734917991331,45.98584931,181.8,181.73,42.58864931]
[1734917992554,45.98584931,181.8,181.71,42.58864931]
[1734917992749,45.98584931,181.8,181.73,42.58864931]
[1734917993448,0.12549,181.77,181.69,42.58864931]
[1734917994730,0.12549,181.77,181.71,42.58864931]
[1734917995557,1.3752,181.78,181.71,42.58864931]
[1734917995722,45.98584931,181.8,181.73,42.58864931]
[1734917996041,3.3972,181.8,181.73,42.58864931]
[1734917996660,3.3972,181.8,181.75,42.58864931]
[1734917999370,3.3022,181.85,181.79,42.58864931]
[1734918000644,1.3747,181.86,181.83,42.58864931]
[1734918000840,3.3022,181.9,181.85,42.58864931]
[1734918001148,3.3022,181.9,181.87,42.58864931]